[Event "Early-Titled-Tuesday-Blitz-July-09-2024"]
[Site "Chess.com"]
[Date "2024.07.09"]
[Round "6"]
[White "Byniolus"]
[Black "FGHSMN"]
[Result "0-1"]
[WhiteElo "2792"]
[BlackElo "2997"]
[TimeControl "180+1"]
[EndTime "9:09:54 PDT"]
[Termination "FGHSMN won by resignation"]

1. d4 {[%clk 0:03:00.9]} 1... Nf6 {[%clk 0:02:55.8]} 2. Nf3 {[%clk 0:03:00.9]}
2... b6 {[%clk 0:02:55.8]} 3. Bf4 {[%clk 0:03:00.8]} 3... Bb7 {[%clk 0:02:56]}
4. e3 {[%clk 0:03:00.7]} 4... g6 {[%clk 0:02:55.8]} 5. h3 {[%clk 0:03:01]} 5...
Bg7 {[%clk 0:02:56.4]} 6. Be2 {[%clk 0:03:01.5]} 6... O-O {[%clk 0:02:57]} 7.
O-O {[%clk 0:03:01.9]} 7... d6 {[%clk 0:02:57.5]} 8. a4 {[%clk 0:03:02.1]} 8...
a6 {[%clk 0:02:53.5]} 9. c3 {[%clk 0:03:02.1]} 9... c5 {[%clk 0:02:51.6]} 10.
Nbd2 {[%clk 0:03:02.1]} 10... Nbd7 {[%clk 0:02:51.3]} 11. Bh2 {[%clk 0:03:02.2]}
11... Qc7 {[%clk 0:02:43.4]} 12. Bd3 {[%clk 0:02:59.5]} 12... Rfe8 {[%clk
0:02:36.5]} 13. Qe2 {[%clk 0:02:53.9]} 13... e5 {[%clk 0:02:25.7]} 14. dxe5
{[%clk 0:02:52.9]} 14... dxe5 {[%clk 0:02:19.4]} 15. e4 {[%clk 0:02:43.8]} 15...
Nh5 {[%clk 0:02:15.9]} 16. Rfd1 {[%clk 0:02:30.6]} 16... Nf4 {[%clk 0:02:14.8]}
17. Qf1 {[%clk 0:02:31]} 17... Bc6 {[%clk 0:02:05.5]} 18. Bxa6 {[%clk
0:02:26.8]} 18... Nf6 {[%clk 0:01:59.2]} 19. Bb5 {[%clk 0:02:21.6]} 19... Bxb5
{[%clk 0:01:49.1]} 20. axb5 {[%clk 0:02:14.2]} 20... Rad8 {[%clk 0:01:49]} 21.
Bxf4 {[%clk 0:01:58.6]} 21... exf4 {[%clk 0:01:48.9]} 22. e5 {[%clk 0:01:59.5]}
22... Nd7 {[%clk 0:01:39.6]} 23. Nc4 {[%clk 0:01:48.5]} 23... Nxe5 {[%clk
0:01:38.7]} 24. Nfxe5 {[%clk 0:01:46.4]} 24... Bxe5 {[%clk 0:01:39.6]} 25. Ra6
{[%clk 0:01:39]} 25... f3 {[%clk 0:01:37.2]} 26. gxf3 {[%clk 0:01:37.1]} 26...
Bf6 {[%clk 0:01:13.4]} 27. Rxb6 {[%clk 0:01:18.9]} 27... Qf4 {[%clk 0:01:11.9]}
28. Rbd6 {[%clk 0:00:29.2]} 28... Rxd6 {[%clk 0:01:10.8]} 29. Rxd6 {[%clk
0:00:30.1]} 29... Qxf3 {[%clk 0:00:52]} 30. b6 {[%clk 0:00:29.2]} 30... Bg5
{[%clk 0:00:45.3]} 31. Rd3 {[%clk 0:00:24.7]} 31... Qc6 {[%clk 0:00:35.5]} 32.
b7 {[%clk 0:00:16.7]} 32... Bf4 {[%clk 0:00:33.8]} 33. Na5 {[%clk 0:00:03.1]}
33... Qb6 {[%clk 0:00:31.2]} 34. Qa1 {[%clk 0:00:01.8]} 34... Bc7 {[%clk
0:00:27.1]} 35. Rf3 {[%clk 0:00:01.3]} 35... Qxa5 {[%clk 0:00:23.3]} 36. Qxa5
{[%clk 0:00:02.2]} 36... Bxa5 {[%clk 0:00:24.1]} 37. Rf6 {[%clk 0:00:03.1]}
37... Rb8 {[%clk 0:00:20.4]} 38. Ra6 {[%clk 0:00:03.2]} 38... Bc7 {[%clk
0:00:21]} 39. Ra8 {[%clk 0:00:03]} 39... Kg7 {[%clk 0:00:21.3]} 40. Rxb8 {[%clk
0:00:03.7]} 40... Bxb8 {[%clk 0:00:21.3]} 41. Kg2 {[%clk 0:00:04.3]} 41... Kf6
{[%clk 0:00:22]} 42. Kf3 {[%clk 0:00:05.2]} 42... Ke5 {[%clk 0:00:22.2]} 43. Ke3
{[%clk 0:00:05.7]} 43... Kd5 {[%clk 0:00:22.1]} 44. b3 {[%clk 0:00:05.5]} 44...
Kc6 {[%clk 0:00:22.3]} 45. Ke4 {[%clk 0:00:06.1]} 45... c4 {[%clk 0:00:18.6]}
46. b4 {[%clk 0:00:04.5]} 46... Kxb7 {[%clk 0:00:19]} 47. Kd5 {[%clk 0:00:04.8]}
47... Kb6 {[%clk 0:00:18]} 48. Kxc4 {[%clk 0:00:03.9]} 48... Be5 {[%clk
0:00:18.2]} 49. Kb3 {[%clk 0:00:02.9]} 49... Kc6 {[%clk 0:00:18.6]} 50. c4
{[%clk 0:00:03.3]} 50... Bd4 {[%clk 0:00:19]} 51. f3 {[%clk 0:00:03.5]} 51... f5
{[%clk 0:00:17.3]} 52. Ka4 {[%clk 0:00:02.8]} 52... g5 {[%clk 0:00:16.7]} 53.
Ka5 {[%clk 0:00:02.4]} 53... h5 {[%clk 0:00:16.8]} 54. b5+ {[%clk 0:00:01.3]}
54... Kc7 {[%clk 0:00:16.7]} 55. Kb4 {[%clk 0:00:01.4]} 55... g4 {[%clk
0:00:15.5]} 56. fxg4 {[%clk 0:00:01.3]} 56... fxg4 {[%clk 0:00:16.1]} 57. hxg4
{[%clk 0:00:01.6]} 57... hxg4 {[%clk 0:00:16.6]} 58. c5 {[%clk 0:00:02.5]} 58...
g3 {[%clk 0:00:17.2]} 59. b6+ {[%clk 0:00:03.4]} 59... Kc6 {[%clk 0:00:17.6]}
60. b7 {[%clk 0:00:04]} 60... Kxb7 {[%clk 0:00:17.5]} 0-1

[Event "Early-Titled-Tuesday-Blitz-July-09-2024"]
[Site "Chess.com"]
[Date "2024.07.09"]
[Round "6"]
[White "Resourchess"]
[Black "Cxrjs"]
[Result "0-1"]
[WhiteElo "2374"]
[BlackElo "2519"]
[TimeControl "180+1"]
[EndTime "9:09:54 PDT"]
[Termination "Cxrjs won by resignation"]

1. d4 {[%clk 0:03:00.9]} 1... Nf6 {[%clk 0:02:59.1]} 2. c4 {[%clk 0:03:00.5]}
2... g6 {[%clk 0:02:59.5]} 3. f3 {[%clk 0:03:00.4]} 3... Bg7 {[%clk 0:02:59.1]}
4. e4 {[%clk 0:03:00.6]} 4... d6 {[%clk 0:02:59.6]} 5. Nc3 {[%clk 0:03:00.7]}
5... O-O {[%clk 0:02:59.7]} 6. Be3 {[%clk 0:03:01.2]} 6... Nc6 {[%clk
0:03:00.4]} 7. Nge2 {[%clk 0:03:00.6]} 7... a6 {[%clk 0:03:00.8]} 8. Rc1 {[%clk
0:02:58.9]} 8... Rb8 {[%clk 0:02:59.1]} 9. g3 {[%clk 0:02:50.3]} 9... Bd7 {[%clk
0:02:58.7]} 10. Bg2 {[%clk 0:02:50]} 10... b5 {[%clk 0:02:58.4]} 11. cxb5 {[%clk
0:02:46.7]} 11... axb5 {[%clk 0:02:58.5]} 12. O-O {[%clk 0:02:46.4]} 12... b4
{[%clk 0:02:56.3]} 13. Nb1 {[%clk 0:02:27.6]} 13... Qc8 {[%clk 0:02:51.9]} 14.
Qc2 {[%clk 0:02:22.6]} 14... Qa6 {[%clk 0:02:46.6]} 15. a3 {[%clk 0:02:12.9]}
15... bxa3 {[%clk 0:02:35]} 16. Nxa3 {[%clk 0:02:12.5]} 16... Nb4 {[%clk
0:02:32.9]} 17. Qc4 {[%clk 0:02:06]} 17... Qxc4 {[%clk 0:02:29.3]} 18. Rxc4
{[%clk 0:02:05.8]} 18... Nd3 {[%clk 0:02:08.9]} 19. Rxc7 {[%clk 0:01:59.8]}
19... Rxb2 {[%clk 0:02:05.9]} 20. Nf4 {[%clk 0:01:50.2]} 20... Nxf4 {[%clk
0:01:16.5]} 21. Bxf4 {[%clk 0:01:48.7]} 21... Rd8 {[%clk 0:01:13.4]} 22. Rfc1
{[%clk 0:01:33.6]} 22... h6 {[%clk 0:01:12.2]} 23. Nc4 {[%clk 0:01:31.6]} 23...
Rb3 {[%clk 0:01:03.8]} 24. Na5 {[%clk 0:01:28.5]} 24... Rb2 {[%clk 0:00:55.1]}
25. Bf1 {[%clk 0:01:08.3]} 25... Ne8 {[%clk 0:00:39.6]} 26. Nc4 {[%clk
0:00:49.2]} 26... Bxd4+ {[%clk 0:00:33.2]} 27. Kh1 {[%clk 0:00:49.3]} 27... Rbb8
{[%clk 0:00:14]} 28. Rxd7 {[%clk 0:00:28.2]} 28... Rxd7 {[%clk 0:00:13.4]} 29.
e5 {[%clk 0:00:26.6]} 29... g5 {[%clk 0:00:06.5]} 30. Bd2 {[%clk 0:00:20.4]}
30... dxe5 {[%clk 0:00:06.7]} 31. Na5 {[%clk 0:00:18.2]} 31... Rb2 {[%clk
0:00:05.8]} 32. Be1 {[%clk 0:00:16.7]} 32... Rd8 {[%clk 0:00:02.8]} 33. Nc6
{[%clk 0:00:15.1]} 33... Ra8 {[%clk 0:00:02.7]} 34. Nxe7+ {[%clk 0:00:14.5]}
34... Kf8 {[%clk 0:00:03.1]} 35. Nd5 {[%clk 0:00:04.7]} 35... Rba2 {[%clk
0:00:02.6]} 36. Bb4+ {[%clk 0:00:04.8]} 36... Kg7 {[%clk 0:00:02.4]} 37. Bd3
{[%clk 0:00:03.8]} 37... Ra1 {[%clk 0:00:02.8]} 38. Rxa1 {[%clk 0:00:04]} 38...
Rxa1+ {[%clk 0:00:03.6]} 39. Kg2 {[%clk 0:00:04.9]} 39... Rg1+ {[%clk
0:00:04.2]} 40. Kh3 {[%clk 0:00:05.1]} 40... Nf6 {[%clk 0:00:04.8]} 41. Ne7
{[%clk 0:00:05.1]} 41... Rh1 {[%clk 0:00:02.2]} 42. Nf5+ {[%clk 0:00:05.1]}
42... Kh8 {[%clk 0:00:02.3]} 43. Be7 {[%clk 0:00:04.9]} 43... e4 {[%clk
0:00:01.7]} 44. Bxe4 {[%clk 0:00:04.2]} 44... Nxe4 {[%clk 0:00:01.6]} 45. fxe4
{[%clk 0:00:05.1]} 45... Bg1 {[%clk 0:00:01.7]} 46. Bf6+ {[%clk 0:00:04.4]}
46... Kg8 {[%clk 0:00:01.6]} 47. Nxh6+ {[%clk 0:00:04.1]} 47... Kh7 {[%clk
0:00:01.7]} 48. Ng4 {[%clk 0:00:04.6]} 48... Kg6 {[%clk 0:00:02.2]} 49. Kg2
{[%clk 0:00:04.8]} 49... Rxh2+ {[%clk 0:00:01.8]} 50. Nxh2 {[%clk 0:00:04.8]}
50... Bxh2 {[%clk 0:00:02.2]} 51. Kxh2 {[%clk 0:00:05.7]} 51... Kxf6 {[%clk
0:00:02.9]} 52. Kh3 {[%clk 0:00:05.7]} 52... Ke5 {[%clk 0:00:03.3]} 53. Kg4
{[%clk 0:00:06.2]} 53... f6 {[%clk 0:00:03.7]} 54. Kf3 {[%clk 0:00:06.3]} 54...
Ke6 {[%clk 0:00:03.4]} 55. Ke3 {[%clk 0:00:05.9]} 55... Ke5 {[%clk 0:00:03.9]}
56. Kf3 {[%clk 0:00:06.4]} 56... Kd4 {[%clk 0:00:04.1]} 57. g4 {[%clk 0:00:06]}
57... Kd3 {[%clk 0:00:04.3]} 58. e5 {[%clk 0:00:05.7]} 58... fxe5 {[%clk
0:00:04.6]} 59. Kf2 {[%clk 0:00:06.2]} 59... e4 {[%clk 0:00:05.2]} 60. Ke1
{[%clk 0:00:06]} 60... e3 {[%clk 0:00:05.8]} 61. Kf1 {[%clk 0:00:06.4]} 61...
Ke4 {[%clk 0:00:06.1]} 62. Ke2 {[%clk 0:00:06.8]} 62... Kf4 {[%clk 0:00:06.8]}
63. Kd3 {[%clk 0:00:07.4]} 63... Kf3 {[%clk 0:00:07.2]} 0-1

[Event "Early-Titled-Tuesday-Blitz-July-09-2024"]
[Site "Chess.com"]
[Date "2024.07.09"]
[Round "6"]
[White "ThanhNghia"]
[Black "Paladin61"]
[Result "0-1"]
[WhiteElo "2499"]
[BlackElo "2741"]
[TimeControl "180+1"]
[EndTime "9:09:58 PDT"]
[Termination "Paladin61 won on time"]

1. e4 {[%clk 0:03:00.9]} 1... e5 {[%clk 0:02:56.8]} 2. Nf3 {[%clk 0:03:00.3]}
2... Nf6 {[%clk 0:02:52.9]} 3. Nc3 {[%clk 0:02:20.1]} 3... Nc6 {[%clk
0:02:52.5]} 4. d4 {[%clk 0:02:18.5]} 4... Bb4 {[%clk 0:02:47.9]} 5. dxe5 {[%clk
0:02:03.6]} 5... Nxe4 {[%clk 0:02:46.9]} 6. Qd3 {[%clk 0:01:59.8]} 6... d5
{[%clk 0:02:42.2]} 7. exd6 {[%clk 0:01:57.1]} 7... O-O {[%clk 0:02:41]} 8. Be2
{[%clk 0:01:53.4]} 8... Bf5 {[%clk 0:02:36.9]} 9. Qc4 {[%clk 0:01:39.1]} 9...
Nxd6 {[%clk 0:02:10.9]} 10. Qf4 {[%clk 0:01:00.3]} 10... Bxc2 {[%clk 0:02:05.7]}
11. O-O {[%clk 0:00:59.7]} 11... Re8 {[%clk 0:01:59]} 12. Be3 {[%clk 0:00:56]}
12... Bxc3 {[%clk 0:01:47.9]} 13. bxc3 {[%clk 0:00:54.8]} 13... Re4 {[%clk
0:01:48.6]} 14. Qg5 {[%clk 0:00:49.1]} 14... Qxg5 {[%clk 0:01:36.1]} 15. Nxg5
{[%clk 0:00:48.7]} 15... Ra4 {[%clk 0:01:33]} 16. Rfc1 {[%clk 0:00:44.9]} 16...
Bg6 {[%clk 0:01:29]} 17. Bd1 {[%clk 0:00:40.8]} 17... Ra5 {[%clk 0:01:23.5]} 18.
Bb3 {[%clk 0:00:39.6]} 18... Re8 {[%clk 0:01:19.1]} 19. Nf3 {[%clk 0:00:37.6]}
19... Bd3 {[%clk 0:01:06]} 20. c4 {[%clk 0:00:36.7]} 20... Nf5 {[%clk
0:00:56.3]} 21. Bd2 {[%clk 0:00:35.3]} 21... Ra6 {[%clk 0:00:52.4]} 22. Re1
{[%clk 0:00:32.2]} 22... Kf8 {[%clk 0:00:45.3]} 23. Rxe8+ {[%clk 0:00:31.8]}
23... Kxe8 {[%clk 0:00:45.3]} 24. Re1+ {[%clk 0:00:32.4]} 24... Kf8 {[%clk
0:00:41.8]} 25. g4 {[%clk 0:00:28.5]} 25... Nd6 {[%clk 0:00:34.6]} 26. Ne5
{[%clk 0:00:20.6]} 26... Nxe5 {[%clk 0:00:31.7]} 27. Rxe5 {[%clk 0:00:20.6]}
27... Bxc4 {[%clk 0:00:30.6]} 28. Bxc4 {[%clk 0:00:19.8]} 28... Nxc4 {[%clk
0:00:30.9]} 29. Bb4+ {[%clk 0:00:18]} 29... Nd6 {[%clk 0:00:31.3]} 30. Rc5
{[%clk 0:00:18.2]} 30... Rc6 {[%clk 0:00:28.1]} 31. Ra5 {[%clk 0:00:18]} 31...
a6 {[%clk 0:00:26.9]} 32. Kg2 {[%clk 0:00:17.8]} 32... Ke7 {[%clk 0:00:25.8]}
33. Re5+ {[%clk 0:00:17.2]} 33... Kd7 {[%clk 0:00:26.1]} 34. h3 {[%clk
0:00:16.6]} 34... Rc2 {[%clk 0:00:23.7]} 35. a3 {[%clk 0:00:16.5]} 35... b6
{[%clk 0:00:22.1]} 36. Kg3 {[%clk 0:00:16.3]} 36... a5 {[%clk 0:00:18.2]} 37.
Be1 {[%clk 0:00:15]} 37... Nc4 {[%clk 0:00:17.1]} 38. Rd5+ {[%clk 0:00:12.5]}
38... Ke6 {[%clk 0:00:17.3]} 39. Rd3 {[%clk 0:00:12.7]} 39... Nd6 {[%clk
0:00:13.5]} 40. f3 {[%clk 0:00:10.5]} 40... Ra2 {[%clk 0:00:12.6]} 41. Bd2
{[%clk 0:00:09.6]} 41... f6 {[%clk 0:00:09.5]} 42. Bf4 {[%clk 0:00:09.2]} 42...
a4 {[%clk 0:00:08.7]} 43. Rc3 {[%clk 0:00:09.2]} 43... Nb5 {[%clk 0:00:08.4]}
44. Rc6+ {[%clk 0:00:07.4]} 44... Kd7 {[%clk 0:00:08.3]} 45. Rc4 {[%clk
0:00:06.7]} 45... Rxa3 {[%clk 0:00:08.2]} 46. h4 {[%clk 0:00:07]} 46... Ra2
{[%clk 0:00:07.2]} 47. h5 {[%clk 0:00:07.1]} 47... h6 {[%clk 0:00:06.9]} 48. Rb4
{[%clk 0:00:02.9]} 48... c6 {[%clk 0:00:06.2]} 49. Be3 {[%clk 0:00:01.2]} 49...
Kc7 {[%clk 0:00:06.1]} 50. Re4 {[%clk 0:00:01.4]} 50... a3 {[%clk 0:00:03.4]}
51. Re7+ {[%clk 0:00:01.5]} 51... Kd6 {[%clk 0:00:04.3]} 52. Rxg7 {[%clk
0:00:01.7]} 52... Re2 {[%clk 0:00:04.5]} 53. Bxb6 {[%clk 0:00:01.7]} 53... a2
{[%clk 0:00:04.4]} 54. Rg6 {[%clk 0:00:01.3]} 54... a1=Q {[%clk 0:00:04.2]} 0-1

[Event "Early-Titled-Tuesday-Blitz-July-09-2024"]
[Site "Chess.com"]
[Date "2024.07.09"]
[Round "6"]
[White "Msb2"]
[Black "Arysya"]
[Result "1-0"]
[WhiteElo "3107"]
[BlackElo "2895"]
[TimeControl "180+1"]
[EndTime "9:10:01 PDT"]
[Termination "Msb2 won by checkmate"]

1. d4 {[%clk 0:03:00.9]} 1... Nf6 {[%clk 0:02:59.7]} 2. c4 {[%clk 0:03:01.4]}
2... d6 {[%clk 0:02:59.9]} 3. Nf3 {[%clk 0:03:01.1]} 3... g6 {[%clk 0:03:00.1]}
4. Nc3 {[%clk 0:03:01.4]} 4... Bf5 {[%clk 0:03:00.4]} 5. d5 {[%clk 0:03:01.7]}
5... Bg7 {[%clk 0:02:59.4]} 6. Nd4 {[%clk 0:03:02]} 6... Bd7 {[%clk 0:02:59.8]}
7. e4 {[%clk 0:03:02.6]} 7... e5 {[%clk 0:03:00.1]} 8. Nb3 {[%clk 0:03:00.3]}
8... a5 {[%clk 0:02:59.5]} 9. Be2 {[%clk 0:02:55.6]} 9... Na6 {[%clk 0:02:52.6]}
10. Be3 {[%clk 0:02:55.4]} 10... a4 {[%clk 0:02:49.4]} 11. Nd2 {[%clk
0:02:54.7]} 11... Nc5 {[%clk 0:02:50]} 12. b4 {[%clk 0:02:49.4]} 12... axb3
{[%clk 0:02:43.8]} 13. axb3 {[%clk 0:02:50.3]} 13... Na6 {[%clk 0:02:40.3]} 14.
O-O {[%clk 0:02:46.5]} 14... O-O {[%clk 0:02:40.1]} 15. Qb1 {[%clk 0:02:28.9]}
15... Ng4 {[%clk 0:02:17.5]} 16. Bxg4 {[%clk 0:02:28.7]} 16... Bxg4 {[%clk
0:02:18.4]} 17. b4 {[%clk 0:02:27.5]} 17... b6 {[%clk 0:02:17.5]} 18. Ra4 {[%clk
0:02:04.8]} 18... Bd7 {[%clk 0:02:15]} 19. Nb5 {[%clk 0:02:05.2]} 19... f5
{[%clk 0:02:13]} 20. f3 {[%clk 0:02:04.7]} 20... Qe8 {[%clk 0:02:10.8]} 21. Qd3
{[%clk 0:01:51.5]} 21... Bxb5 {[%clk 0:02:06.2]} 22. cxb5 {[%clk 0:01:52.4]}
22... Nc5 {[%clk 0:02:06.5]} 23. Rxa8 {[%clk 0:01:51.8]} 23... Nxd3 {[%clk
0:02:07]} 24. Rxe8 {[%clk 0:01:52.5]} 24... Rxe8 {[%clk 0:02:07.9]} 25. Ra1
{[%clk 0:01:44.4]} 25... f4 {[%clk 0:01:50.1]} 26. Bf2 {[%clk 0:01:43.4]} 26...
Nxb4 {[%clk 0:01:50.4]} 27. Ra7 {[%clk 0:01:35.6]} 27... Rc8 {[%clk 0:01:48.1]}
28. Kf1 {[%clk 0:01:35.9]} 28... h5 {[%clk 0:01:28.3]} 29. Ke2 {[%clk 0:01:35]}
29... Bh6 {[%clk 0:01:28]} 30. Nc4 {[%clk 0:01:31]} 30... Nc2 {[%clk 0:01:14.9]}
31. Kd2 {[%clk 0:01:31.2]} 31... Ne3 {[%clk 0:01:14.5]} 32. Nxe3 {[%clk
0:01:30.2]} 32... fxe3+ {[%clk 0:01:14.6]} 33. Bxe3 {[%clk 0:01:31.1]} 33...
Bxe3+ {[%clk 0:00:37.3]} 34. Kxe3 {[%clk 0:01:32]} 34... Kf7 {[%clk 0:00:37.7]}
35. f4 {[%clk 0:01:32.2]} 35... Ke7 {[%clk 0:00:37.1]} 36. g3 {[%clk 0:01:08.2]}
36... Kd7 {[%clk 0:00:32.2]} 37. h3 {[%clk 0:01:04.9]} 37... Rf8 {[%clk
0:00:24.9]} 38. Ra1 {[%clk 0:00:54.8]} 38... h4 {[%clk 0:00:20.8]} 39. fxe5
{[%clk 0:00:55]} 39... dxe5 {[%clk 0:00:19.5]} 40. Rg1 {[%clk 0:00:44.9]} 40...
hxg3 {[%clk 0:00:19.8]} 41. Rxg3 {[%clk 0:00:45.8]} 41... Rh8 {[%clk 0:00:20.1]}
42. Kf3 {[%clk 0:00:46.5]} 42... Rh4 {[%clk 0:00:20.2]} 43. Rxg6 {[%clk
0:00:46.5]} 43... Rxh3+ {[%clk 0:00:20.3]} 44. Kg4 {[%clk 0:00:47]} 44... Rb3
{[%clk 0:00:08.6]} 45. Kf5 {[%clk 0:00:47.3]} 45... Rxb5 {[%clk 0:00:08.8]} 46.
Kxe5 {[%clk 0:00:48]} 46... Rb1 {[%clk 0:00:05.7]} 47. Rg7+ {[%clk 0:00:48.5]}
47... Kc8 {[%clk 0:00:05.8]} 48. Ke6 {[%clk 0:00:35.9]} 48... Re1 {[%clk
0:00:05.7]} 49. e5 {[%clk 0:00:36.3]} 49... Re2 {[%clk 0:00:05.3]} 50. Rg5
{[%clk 0:00:25.5]} 50... Rd2 {[%clk 0:00:03.3]} 51. Rg8+ {[%clk 0:00:14.4]}
51... Kb7 {[%clk 0:00:03.5]} 52. Kf6 {[%clk 0:00:15.3]} 52... Rf2+ {[%clk
0:00:02.1]} 53. Ke7 {[%clk 0:00:15.9]} 53... b5 {[%clk 0:00:02]} 54. e6 {[%clk
0:00:15.9]} 54... Re2 {[%clk 0:00:02.1]} 55. Kd7 {[%clk 0:00:15.2]} 55... Re5
{[%clk 0:00:01.6]} 56. e7 {[%clk 0:00:15.1]} 56... Rxd5+ {[%clk 0:00:02.2]} 57.
Ke6 {[%clk 0:00:15.8]} 57... Rd1 {[%clk 0:00:03]} 58. e8=Q {[%clk 0:00:15.9]}
58... Re1+ {[%clk 0:00:03.6]} 59. Kd5 {[%clk 0:00:16.4]} 59... Rxe8 {[%clk
0:00:02.9]} 60. Rxe8 {[%clk 0:00:17.3]} 60... Kb6 {[%clk 0:00:02.4]} 61. Re6+
{[%clk 0:00:17.1]} 61... Ka5 {[%clk 0:00:01.9]} 62. Kc5 {[%clk 0:00:17.5]} 62...
b4 {[%clk 0:00:02.5]} 63. Kc4 {[%clk 0:00:17.6]} 63... c5 {[%clk 0:00:02.2]} 64.
Rc6 {[%clk 0:00:17.5]} 64... Ka4 {[%clk 0:00:02.5]} 65. Ra6# {[%clk 0:00:17.6]}
1-0

[Event "Early-Titled-Tuesday-Blitz-July-09-2024"]
[Site "Chess.com"]
[Date "2024.07.09"]
[Round "6"]
[White "Beca95"]
[Black "ilqar_74"]
[Result "1-0"]
[WhiteElo "3002"]
[BlackElo "2897"]
[TimeControl "180+1"]
[EndTime "9:10:01 PDT"]
[Termination "Beca95 won by resignation"]

1. Nf3 {[%clk 0:02:59.1]} 1... Nf6 {[%clk 0:02:56.2]} 2. c4 {[%clk 0:02:59.1]}
2... e6 {[%clk 0:02:56.4]} 3. Nc3 {[%clk 0:02:56.7]} 3... d5 {[%clk 0:02:57]} 4.
e3 {[%clk 0:02:55]} 4... c5 {[%clk 0:02:54.6]} 5. cxd5 {[%clk 0:02:54.7]} 5...
Nxd5 {[%clk 0:02:53]} 6. Bc4 {[%clk 0:02:54.3]} 6... Nc6 {[%clk 0:02:52.8]} 7.
O-O {[%clk 0:02:53.5]} 7... Nb6 {[%clk 0:02:52.9]} 8. Bb5 {[%clk 0:02:52]} 8...
Bd7 {[%clk 0:02:52.9]} 9. d4 {[%clk 0:02:51.9]} 9... cxd4 {[%clk 0:02:53]} 10.
exd4 {[%clk 0:02:52.8]} 10... Be7 {[%clk 0:02:50.9]} 11. Qe2 {[%clk 0:02:51.1]}
11... O-O {[%clk 0:02:49.7]} 12. Rd1 {[%clk 0:02:51]} 12... a6 {[%clk
0:02:48.3]} 13. Bd3 {[%clk 0:02:50.6]} 13... Nd5 {[%clk 0:02:46.3]} 14. Qe4
{[%clk 0:02:44.4]} 14... f5 {[%clk 0:02:22.3]} 15. Qe2 {[%clk 0:02:43.4]} 15...
Bf6 {[%clk 0:02:12.8]} 16. Bc4 {[%clk 0:02:43.4]} 16... Nce7 {[%clk 0:02:13.1]}
17. h4 {[%clk 0:02:39.8]} 17... Rc8 {[%clk 0:02:11.6]} 18. Bg5 {[%clk
0:02:38.3]} 18... b5 {[%clk 0:02:06.3]} 19. Bxd5 {[%clk 0:02:36.4]} 19... Nxd5
{[%clk 0:02:03.5]} 20. Nxd5 {[%clk 0:02:35.6]} 20... exd5 {[%clk 0:02:04.1]} 21.
Ne5 {[%clk 0:02:35.6]} 21... Be6 {[%clk 0:01:50.6]} 22. f4 {[%clk 0:02:18.6]}
22... Qd6 {[%clk 0:01:46.6]} 23. Bxf6 {[%clk 0:02:18.4]} 23... gxf6 {[%clk
0:01:45.4]} 24. Nd3 {[%clk 0:02:18.3]} 24... Bf7 {[%clk 0:01:45.8]} 25. Qf2
{[%clk 0:02:15.9]} 25... Kh8 {[%clk 0:01:41.8]} 26. Rac1 {[%clk 0:02:14.7]}
26... Rg8 {[%clk 0:01:38.5]} 27. Rxc8 {[%clk 0:02:14.1]} 27... Rxc8 {[%clk
0:01:38.3]} 28. Re1 {[%clk 0:02:14.2]} 28... Re8 {[%clk 0:01:24.9]} 29. Rxe8+
{[%clk 0:02:13.2]} 29... Bxe8 {[%clk 0:01:25.8]} 30. Qe3 {[%clk 0:02:13.3]}
30... Bf7 {[%clk 0:01:24.6]} 31. Nc5 {[%clk 0:02:12.1]} 31... Kg7 {[%clk
0:01:21.4]} 32. g3 {[%clk 0:02:11.6]} 32... Qd8 {[%clk 0:01:17.4]} 33. Qe1
{[%clk 0:02:10.9]} 33... Qd6 {[%clk 0:01:13.4]} 34. Kf2 {[%clk 0:02:10.7]} 34...
h6 {[%clk 0:01:07.2]} 35. Qa5 {[%clk 0:02:09.9]} 35... Qe7 {[%clk 0:00:40.1]}
36. Qxa6 {[%clk 0:02:09.1]} 36... Kg8 {[%clk 0:00:40.1]} 37. Qa8+ {[%clk
0:02:06.7]} 37... Kg7 {[%clk 0:00:38.4]} 38. Qb7 {[%clk 0:02:06.3]} 38... Qe8
{[%clk 0:00:38.4]} 39. a3 {[%clk 0:02:04.2]} 39... Kg8 {[%clk 0:00:30.7]} 40.
Qd7 {[%clk 0:02:01.7]} 40... Qb8 {[%clk 0:00:25.1]} 41. Qe7 {[%clk 0:01:59.8]}
41... b4 {[%clk 0:00:10.2]} 42. Qb7 {[%clk 0:01:57.5]} 42... Qe8 {[%clk
0:00:07.1]} 43. Qxb4 {[%clk 0:01:56.8]} 43... Bh5 {[%clk 0:00:07.1]} 44. Qd2
{[%clk 0:01:53.4]} 44... Qb5 {[%clk 0:00:07.7]} 45. a4 {[%clk 0:01:50.9]} 45...
Qc4 {[%clk 0:00:07.5]} 46. a5 {[%clk 0:01:49.8]} 46... Qa2 {[%clk 0:00:04.1]}
47. a6 {[%clk 0:01:48.6]} 47... Qa1 {[%clk 0:00:04.7]} 48. Kg2 {[%clk
0:01:48.4]} 48... Bg4 {[%clk 0:00:04.7]} 49. b4 {[%clk 0:01:40.9]} 49... Qa3
{[%clk 0:00:05.2]} 50. b5 {[%clk 0:01:35.8]} 50... Bf3+ {[%clk 0:00:05.3]} 51.
Kf2 {[%clk 0:01:33.2]} 51... Bh1 {[%clk 0:00:04.6]} 52. Qe2 {[%clk 0:01:29.7]}
52... Qc3 {[%clk 0:00:04.9]} 53. Qe8+ {[%clk 0:01:27.4]} 53... Kh7 {[%clk
0:00:04.4]} 54. Qf7+ {[%clk 0:01:27.4]} 54... Kh8 {[%clk 0:00:05]} 55. Qxf6+
{[%clk 0:01:27.6]} 55... Kg8 {[%clk 0:00:05.7]} 56. Qe6+ {[%clk 0:01:27.5]}
56... Kh8 {[%clk 0:00:05.8]} 57. Qe5+ {[%clk 0:01:23.4]} 57... Kg8 {[%clk
0:00:05.7]} 58. a7 {[%clk 0:01:14.7]} 58... Qf3+ {[%clk 0:00:05.7]} 59. Ke1
{[%clk 0:01:14.9]} 59... Qc3+ {[%clk 0:00:06.3]} 60. Ke2 {[%clk 0:01:12]} 60...
Qc2+ {[%clk 0:00:06.4]} 61. Kf1 {[%clk 0:01:10.4]} 61... Qd1+ {[%clk 0:00:03.9]}
62. Kf2 {[%clk 0:01:06.7]} 62... Qf3+ {[%clk 0:00:03.7]} 63. Ke1 {[%clk
0:01:04.8]} 63... Qc3+ {[%clk 0:00:04.3]} 64. Ke2 {[%clk 0:00:57.9]} 64... Qc2+
{[%clk 0:00:03.1]} 65. Ke3 {[%clk 0:00:58.2]} 65... Qc1+ {[%clk 0:00:02.6]} 66.
Kd3 {[%clk 0:00:58.5]} 66... Qd1+ {[%clk 0:00:02.3]} 67. Kc3 {[%clk 0:00:58.6]}
67... Qc1+ {[%clk 0:00:02.9]} 68. Kb4 {[%clk 0:00:57.8]} 68... Qd2+ {[%clk
0:00:03.5]} 69. Kb3 {[%clk 0:00:53.8]} 69... Qd1+ {[%clk 0:00:04]} 70. Ka3
{[%clk 0:00:53.8]} 70... Qa1+ {[%clk 0:00:04.4]} 71. Kb4 {[%clk 0:00:53.8]}
71... Qxa7 {[%clk 0:00:04.6]} 72. Na6 {[%clk 0:00:51.9]} 72... Qf7 {[%clk
0:00:02.7]} 73. Qb8+ {[%clk 0:00:51]} 73... Kh7 {[%clk 0:00:02.8]} 74. Qc7
{[%clk 0:00:50.9]} 1-0